bitfinex-derivatives/quotes_BNBF0:USTF0_20230831
["timestamp","ask_amount","ask_price","bid_price","bid_amount"]
[1693509274110,0.84790323,217.12,216.0,0.18985221]
[1693509274311,0.84790323,217.12,215.96,0.18985221]
[1693509274609,0.99446385,217.23,215.96,0.18985221]
[1693509274813,0.99446385,217.23,215.97,0.18985221]
[1693509275009,0.84790323,217.22,215.97,0.18985221]
[1693509275409,0.84790323,217.23,215.97,0.07413423]
[1693509275609,0.84790323,217.23,216.0,0.07413423]
[1693509275803,0.14656062,217.29,216.01,0.18985221]
[1693509275804,0.84790323,217.21,216.01,0.18985221]
[1693509276005,0.84790323,217.22,216.01,0.26398644]
[1693509276203,0.84790323,217.2,216.02,0.18985221]
[1693509276513,0.84790323,217.21,216.03,0.18985221]
[1693509276708,0.84790323,217.19,216.03,0.18985221]
[1693509276909,0.84790323,217.2,215.97,0.18985221]
[1693509277109,0.84790323,217.2,215.73,0.98845649]
[1693509277110,0.84790323,217.18,216.04,0.18985221]
[1693509277410,0.84790323,217.3,215.98,0.18985221]
[1693509277612,0.84790323,217.17,216.05,0.18985221]
[1693509277912,0.84790323,217.29,215.99,0.18985221]
[1693509278109,0.84790323,217.16,216.06,0.18985221]
[1693509278304,0.84790323,217.28,216.0,0.18985221]
[1693509278611,0.14656062,217.27,216.07,0.18985221]
[1693509278811,0.14656062,217.27,216.01,0.18985221]
[1693509279012,0.99446385,217.26,216.08,0.18985221]
[1693509279210,0.84790323,217.26,216.02,0.18985221]
[1693509279411,0.84790323,217.25,216.02,0.18985221]
[1693509279612,0.84790323,217.25,215.78,0.18985221]
[1693509279804,0.84790323,217.26,215.78,0.18985221]
[1693509280008,0.84790323,217.26,216.03,0.18985221]
[1693509280215,0.99446385,217.26,215.79,0.18985221]
[1693509280405,0.84790323,217.25,215.79,0.18985221]
[1693509280609,0.84790323,217.25,215.8,0.18985221]
[1693509280812,0.84790323,217.25,215.78,0.18985221]
[1693509280813,0.14656062,217.24,215.78,0.18985221]
[1693509281013,0.84790323,217.23,215.81,0.18985221]
[1693509281407,0.84790323,217.23,215.79,0.18985221]
[1693509281611,0.84790323,217.23,215.82,0.18985221]
[1693509281911,0.99446385,217.24,215.8,0.18985221]
[1693509282113,0.99446385,217.24,215.75,0.07413423]
[1693509282114,0.84790323,217.23,215.83,0.18985221]
[1693509282414,0.14656062,217.22,215.84,0.18985221]
[1693509282714,0.14656062,217.16,215.75,0.18985221]
[1693509282908,0.14656062,217.16,215.69,0.26398644]
[1693509283106,0.84790323,217.15,215.7,0.18985221]
[1693509283313,0.84790323,217.16,215.7,0.18985221]
[1693509283513,0.14656062,217.17,215.68,0.07413423]
[1693509283514,0.84790323,217.14,215.71,0.18985221]
[1693509283812,0.84790323,217.13,215.69,0.18985221]
[1693509284008,0.84790323,217.16,215.72,0.18985221]
[1693509284213,0.84790323,217.12,215.7,0.18985221]
[1693509284411,0.84790323,217.15,215.73,0.18985221]
[1693509284608,0.99446385,217.15,215.74,0.18985221]
[1693509284914,0.84790323,217.14,215.75,0.18985221]
[1693509285209,0.84790323,217.13,215.76,0.18985221]
[1693509285417,0.84790323,217.14,215.71,0.18985221]
[1693509285613,0.84790323,217.12,215.77,0.18985221]
[1693509285907,0.84790323,217.12,215.47,0.98845649]
[1693509285908,0.84790323,217.11,215.78,0.18985221]
[1693509286212,0.99446385,217.1,215.76,0.07413423]
[1693509286412,0.84790323,217.1,215.79,0.18985221]
[1693509286611,0.84790323,217.09,215.8,0.18985221]
[1693509286811,0.84790323,217.09,215.77,0.07413423]
[1693509287012,0.99446385,217.1,215.78,0.18985221]
[1693509287208,0.99446385,217.08,215.76,0.18985221]
[1693509287406,0.84790323,217.07,215.79,0.18985221]
[1693509287607,0.14656062,217.01,215.8,0.07413423]
[1693509287812,0.84790323,217.0,215.8,0.26398644]
[1693509288012,0.84790323,217.0,215.8,0.07413423]
[1693509288210,0.84790323,217.0,215.81,0.18985221]
[1693509288411,0.14656062,216.99,215.81,0.26398644]
[1693509288610,0.84790323,216.98,215.82,0.18985221]
[1693509288914,0.84790323,216.98,215.82,0.26398644]
[1693509289117,0.14656062,216.96,215.86,0.07413423]
[1693509289315,0.84790323,216.95,215.87,0.18985221]
[1693509290113,0.99446385,216.95,215.87,0.18985221]
[1693509290310,0.84790323,216.94,215.87,0.26398644]
[1693509290509,0.84790323,216.94,215.88,0.18985221]
[1693509290914,0.14656062,216.9,215.88,0.18985221]
[1693509291114,0.14656062,216.84,215.88,0.18985221]
[1693509291310,0.14656062,216.84,215.89,0.18985221]
[1693509291515,0.84790323,216.83,215.87,0.18985221]
[1693509291713,0.84790323,216.83,215.9,0.18985221]
[1693509291912,0.84790323,216.83,215.92,0.07413423]
[1693509292111,0.84790323,216.82,215.94,0.07413423]
[1693509292313,0.84790323,216.82,215.95,0.18985221]
[1693509292514,0.84790323,216.89,215.95,0.26398644]
[1693509292816,0.84790323,216.88,215.96,0.18985221]
[1693509293016,0.84790323,216.9,215.96,0.18985221]
[1693509293217,0.14656062,216.82,216.03,0.07413423]
[1693509293422,0.84790323,216.81,216.04,0.18985221]
[1693509293717,0.84790323,216.81,216.04,0.26398644]
[1693509293917,0.84790323,216.81,216.05,0.26398644]
[1693509294119,0.84790323,216.82,216.06,0.18985221]
[1693509294419,0.84790323,216.81,216.06,0.18985221]
[1693509294618,0.84790323,216.81,216.06,0.26398644]
[1693509294816,0.84790323,216.82,216.07,0.18985221]
[1693509295013,0.14656062,216.83,216.07,0.18985221]
[1693509295014,0.84790323,216.81,216.07,0.18985221]
[1693509295212,0.14656062,216.81,216.09,0.07413423]
[1693509295517,0.84790323,216.8,216.1,0.18985221]
[1693509296015,0.84790323,216.8,216.11,0.18985221]
[1693509296218,0.84790323,216.8,216.1,0.07413423]
[1693509296413,0.99446385,216.8,216.11,0.18985221]
[1693509296613,0.84790323,216.79,216.1,0.18985221]
[1693509297016,0.14810346,216.81,216.11,0.07480739]
[1693509297215,0.84790323,216.8,216.12,0.18985221]
[1693509297416,0.99600669,216.8,216.12,0.18985221]
[1693509297717,0.84790323,216.79,216.12,0.18985221]
[1693509297919,0.84790323,216.79,216.11,0.18985221]
[1693509298119,0.14810346,216.78,216.12,0.18985221]
[1693509298320,0.84790323,216.77,216.11,0.18985221]
[1693509298717,0.84790323,216.78,216.15,0.07480739]
[1693509298913,0.84790323,216.77,216.17,0.07480739]
[1693509299119,0.84790323,216.76,216.18,0.18985221]
[1693509299420,0.84790323,216.75,216.18,0.2646596]
[1693509299719,0.14810346,216.82,216.19,0.18985221]
[1693509299720,0.84790323,216.74,216.19,0.18985221]
[1693509299920,0.84790323,216.81,216.19,0.2646596]
[1693509300122,0.84790323,216.8,216.2,0.18985221]
[1693509300323,0.84790323,216.79,216.2,0.18985221]
[1693509300522,0.84790323,216.78,216.2,0.18985221]
[1693509300722,0.84790323,216.81,216.2,0.18985221]
[1693509300914,0.84790323,216.8,216.2,0.18985221]
[1693509301118,0.84790323,216.81,216.2,0.18985221]
[1693509301320,0.84790323,216.8,216.2,0.18985221]
[1693509301517,0.99600669,216.82,216.2,0.18985221]
[1693509301822,0.99600669,216.81,216.21,0.18985221]
[1693509302019,0.84790323,216.8,216.21,0.18985221]
[1693509302319,0.84790323,216.8,216.22,0.18985221]
[1693509302523,0.84790323,216.8,215.96,0.99743189]
[1693509302524,0.84790323,216.82,216.2,0.2646596]
[1693509302824,0.84790323,216.81,216.21,0.2646596]
[1693509303017,0.84790323,216.83,216.22,0.18985221]
[1693509303218,0.99600669,216.83,216.21,0.2646596]
[1693509303417,0.84790323,216.82,216.22,0.2646596]
[1693509303722,0.84790323,216.82,216.23,0.18985221]
[1693509304125,0.99600669,216.82,216.23,0.18985221]
[1693509304320,0.84790323,216.81,216.23,0.18985221]
[1693509304520,0.84790323,216.81,216.21,0.07480739]
[1693509304521,0.84790323,216.81,216.22,0.18985221]
[1693509304824,0.84790323,216.81,216.23,0.18985221]
[1693509305025,0.99600669,216.81,216.22,0.18985221]
[1693509305225,0.84790323,216.8,216.23,0.18985221]
[1693509305420,0.84790323,216.8,216.21,0.07480739]
[1693509305421,0.84790323,216.8,216.22,0.18985221]
[1693509305625,0.99600669,216.8,216.24,0.18985221]
[1693509305825,0.14810346,216.76,216.23,0.18985221]
[1693509306018,0.84790323,216.75,216.25,0.18985221]
[1693509306220,0.84790323,216.75,216.26,0.18985221]
[1693509306422,0.84790323,216.76,216.17,0.2646596]
[1693509306622,0.84790323,216.75,216.18,0.18985221]
[1693509306821,0.84790323,216.76,216.18,0.18985221]
[1693509307025,0.99600669,216.75,216.17,0.18985221]
[1693509307226,0.84790323,216.74,216.18,0.18985221]
[1693509307525,0.84790323,216.74,216.19,0.18985221]
[1693509307725,0.84790323,216.74,216.2,0.18985221]
[1693509307927,0.84790323,216.74,216.15,0.18985221]
[1693509308128,0.84790323,216.74,216.16,0.18985221]
[1693509308327,0.84790323,216.74,216.15,0.18985221]
[1693509308527,0.84790323,216.74,216.17,0.18985221]
[1693509308528,0.14810346,216.73,216.17,0.18985221]
[1693509308730,0.14810346,216.73,216.16,0.18985221]
[1693509308929,0.14810346,216.73,216.18,0.18985221]
[1693509309130,0.99600669,216.72,216.18,0.18985221]
[1693509309332,0.84790323,216.72,216.17,0.18985221]
[1693509309532,0.84790323,216.71,216.17,0.18985221]
[1693509309732,0.84790323,216.72,216.19,0.18985221]
[1693509309933,0.84790323,216.7,216.19,0.18985221]
[1693509310233,0.84790323,216.7,216.21,0.07480739]
[1693509311133,0.84790323,216.71,216.22,0.18828189]
[1693509311335,0.14810346,216.69,216.22,0.18828189]
[1693509313029,0.14810346,216.66,216.23,0.07480739]
[1693509313236,0.14810346,216.71,216.27,0.07480739]
[1693509313432,0.14810346,216.68,216.25,0.07480739]
[1693509313633,0.14810346,216.67,216.24,0.07480739]
[1693509313831,0.14810346,216.66,216.22,0.26308928]
[1693509314033,0.14810346,216.65,216.22,0.26308928]
[1693509314632,0.14810346,216.66,216.23,0.07480739]
[1693509315235,0.14810346,216.65,216.23,0.07480739]
[1693509316437,0.14810346,216.65,216.24,0.18828189]
[1693509317135,0.14810346,216.66,216.24,0.26308928]
[1693509317336,0.14810346,216.66,216.25,0.18828189]
[1693509318035,0.14810346,216.65,216.25,0.18828189]
[1693509318234,0.14810346,216.64,216.25,0.18828189]
[1693509318437,0.14810346,216.65,216.26,0.18828189]
[1693509318629,0.14810346,216.65,216.24,0.26308928]
[1693509318831,0.07462082,216.63,216.25,0.18828189]
[1693509319034,0.07462082,216.63,216.24,0.18828189]
[1693509319234,0.07462082,216.63,216.25,0.18828189]
[1693509319435,0.07462082,216.63,216.24,0.18828189]
[1693509319637,0.07462082,216.62,216.25,0.18828189]
[1693509319837,0.07462082,216.63,216.24,0.26308928]
[1693509320131,0.07462082,216.63,216.25,0.18828189]
[1693509320639,0.07462082,216.64,216.25,0.26308928]
[1693509320839,0.07462082,216.64,216.26,0.18828189]
[1693509321234,0.07462082,216.64,216.18,0.14961478]
[1693509321235,0.07462082,216.63,216.25,0.26308928]
[1693509321438,0.07462082,216.63,216.26,0.18828189]
[1693509322132,0.07462082,216.64,216.26,0.18828189]
[1693509322336,0.07462082,216.69,216.3,0.07480739]
[1693509322636,2.46839103,216.83,216.31,0.26308928]
[1693509322637,0.07462082,216.7,216.31,0.26308928]
[1693509322841,0.07462082,216.7,216.32,0.18828189]
[1693509323239,0.07462082,216.71,216.32,0.18828189]
[1693509323434,0.07462082,216.7,216.32,0.18828189]
[1693509323837,0.07462082,216.7,216.07,0.99743189]
[1693509323838,0.07462082,216.71,216.31,0.26308928]
[1693509324041,0.07462082,216.71,216.32,0.26308928]
[1693509324240,0.07462082,216.72,216.33,0.26308928]
[1693509324438,0.98735641,216.8,216.33,0.26308928]
[1693509324439,0.4936782,216.77,216.38,0.07480739]
[1693509324643,0.07462082,216.78,216.38,0.07480739]
[1693509324843,0.07462082,216.8,216.39,0.18828189]
[1693509325042,0.98735641,216.87,216.39,0.18828189]
[1693509325043,0.07462082,216.79,216.4,0.07480739]
[1693509325244,0.07462082,216.82,216.41,0.18828189]
[1693509325444,0.07462082,216.82,216.37,0.18828189]
[1693509325638,0.07462082,216.82,216.38,0.18828189]
[1693509326143,0.92282953,216.81,216.37,0.18828189]
[1693509326443,0.92285241,216.8,216.38,0.18828189]
[1693509326643,0.07462082,216.8,216.35,0.18828189]
[1693509326842,0.07462082,216.79,216.36,0.18828189]
[1693509327039,0.07462082,216.79,216.35,0.18828189]
[1693509327346,0.07462082,216.82,216.36,0.18828189]
[1693509327540,0.92285812,216.81,216.34,0.18828189]
[1693509327744,0.07462082,216.82,216.35,0.18828189]
[1693509327939,0.07462082,216.82,216.36,0.18828189]
[1693509328145,0.07462082,216.83,216.36,0.18828189]
[1693509328440,0.84817823,216.82,216.36,0.18828189]
[1693509329347,0.07462082,216.85,216.37,0.18828189]
[1693509329545,0.84816884,216.84,216.38,0.18828189]
[1693509329740,0.84816884,216.84,216.39,0.18828189]
[1693509329942,0.84816884,216.84,216.35,0.18828189]
[1693509330848,0.07444727,216.85,216.35,0.18828189]
[1693509331748,0.84813582,216.84,216.35,0.18828189]
[1693509341555,0.07444727,216.85,216.29,0.18828189]
[1693509341853,0.07444727,216.83,216.3,0.18828189]
[1693509342057,0.84813582,216.82,216.24,0.18828189]
[1693509342649,0.84813582,216.82,216.23,0.26338069]
[1693509342953,0.92258309,216.83,216.24,0.18828189]
[1693509343148,0.84813582,216.81,216.24,0.0750988]
[1693509343456,0.84813582,216.8,216.25,0.18828189]
[1693509343656,0.84813582,216.82,216.25,0.18828189]
[1693509344053,0.84813582,216.82,216.24,0.18828189]
[1693509344250,0.92258309,216.82,216.24,0.26338069]
[1693509344456,0.84813582,216.81,216.25,0.18828189]
[1693509345256,0.84813582,216.81,216.25,0.26338069]
[1693509345555,0.84813582,216.81,216.26,0.18828189]
[1693509346355,0.84813582,216.82,216.26,0.18828189]
[1693509346652,0.84813582,216.81,216.26,0.18828189]
[1693509348058,0.92258309,216.81,216.26,0.26338069]
[1693509348254,0.92258309,216.81,216.19,0.15019761]
[1693509348255,0.84813582,216.8,216.27,0.18828189]
[1693509348456,0.84813582,216.8,216.26,0.18828189]
[1693509348960,0.84813582,216.8,216.26,0.26338069]
[1693509349253,0.84813582,216.8,216.27,0.18828189]
[1693509349754,0.92258309,216.8,216.27,0.18828189]
[1693509349959,0.84813582,216.79,216.26,0.18828189]
[1693509350356,0.84813582,216.79,216.26,0.26338069]
[1693509350357,0.92258309,216.79,216.26,0.26338069]
[1693509350555,0.84813582,216.78,216.27,0.18828189]
[1693509351158,0.92258309,216.78,216.27,0.18828189]
[1693509351355,0.84813582,216.77,216.26,0.26338069]
[1693509351555,0.84813582,216.77,216.27,0.18828189]
[1693509351960,0.84813582,216.77,216.27,0.26338069]
[1693509352157,0.84813582,216.77,216.29,0.0750988]
[1693509352357,0.84813582,216.76,216.3,0.18828189]
[1693509352659,0.84813582,216.76,216.31,0.18828189]
[1693509352859,0.92258309,216.77,216.29,0.18828189]
[1693509353160,0.84813582,216.76,216.3,0.18828189]
[1693509353359,0.84813582,216.76,216.29,0.18828189]
[1693509353559,0.84813582,216.76,216.3,0.18828189]
[1693509353752,0.84813582,216.76,216.29,0.18828189]
[1693509353958,0.84813582,216.76,216.31,0.18828189]
[1693509354158,0.07444727,216.75,216.32,0.18828189]
[1693509354357,0.07444727,216.76,216.31,0.18828189]
[1693509354962,0.07444727,216.75,216.31,0.18828189]
[1693509356064,0.07444727,216.74,216.31,0.18828189]
[1693509356363,0.07444727,216.72,216.32,0.18828189]
[1693509356956,0.07444727,216.73,216.32,0.26338069]
[1693509357157,0.07444727,216.71,216.33,0.18828189]
[1693509357363,0.07444727,216.71,216.32,0.18828189]
[1693509357664,0.14889455,216.69,216.33,0.18828189]
[1693509357963,0.07444727,216.65,216.26,0.18828189]
[1693509358158,0.07444727,216.65,216.34,0.18828189]
[1693509358363,0.07444727,216.65,216.27,0.18828189]
[1693509358664,0.07444727,216.66,216.28,0.18828189]
[1693509358865,2.48157583,216.79,216.28,0.18828189]
[1693509358866,0.07444727,216.65,216.28,0.18828189]
[1693509359068,0.07444727,216.67,216.26,0.18828189]
[1693509359364,0.07444727,216.67,216.27,0.18828189]
[1693509359864,0.07444727,216.67,216.28,0.18828189]
[1693509360263,0.07444727,216.67,216.23,0.18828189]
[1693509360463,0.07444727,216.67,216.24,0.18828189]
[1693509360662,0.07444727,216.67,216.23,0.18828189]
[1693509361063,0.07444727,216.67,216.22,0.18828189]
[1693509361263,0.07444727,216.67,216.22,0.26338069]
[1693509361665,0.49631516,216.72,216.23,0.18828189]
[1693509361666,0.07444727,216.68,216.23,0.18828189]
[1693509362266,0.07444727,216.67,216.23,0.18828189]
[1693509362461,0.07444727,216.69,216.23,0.18828189]
[1693509362668,0.07444727,216.68,216.23,0.18828189]
[1693509362867,0.92322285,216.68,216.21,0.18828189]
[1693509363069,0.07444727,216.67,216.24,0.18828189]
[1693509363264,0.07444727,216.67,216.25,0.18828189]
[1693509363568,0.84877558,216.66,216.2,0.18828189]
[1693509363763,0.84877558,216.66,216.26,0.18828189]
[1693509363967,0.84877558,216.66,216.27,0.18828189]
[1693509364167,0.84877558,216.66,216.17,0.18828189]
[1693509365369,0.84877558,216.66,216.01,0.50065873]
[1693509365370,0.84877558,216.68,216.02,0.68935804]
[1693509365571,0.84877558,216.65,216.18,0.18828189]
[1693509365770,0.84877558,216.67,216.17,0.07516142]
[1693509366067,0.84877558,216.67,216.18,0.18828189]
[1693509366267,0.84877558,216.67,216.15,0.18828189]
[1693509366464,0.84877558,216.67,216.17,0.07516142]
[1693509366465,0.92322188,216.67,216.17,0.07516142]
[1693509366667,0.84877558,216.66,216.18,0.18828189]
[1693509366867,0.84877558,216.66,216.18,0.26344331]
[1693509367167,0.84877558,216.66,216.19,0.18828189]
[1693509367469,0.0744463,216.68,216.19,0.18828189]
[1693509367670,0.84882302,216.67,216.19,0.18828189]
[1693509368067,0.84882302,216.67,216.2,0.07516142]
[1693509368269,0.0744463,216.69,216.21,0.18828189]
[1693509368470,0.84876468,216.68,216.21,0.18828189]
[1693509368771,0.92321098,216.68,216.21,0.18828189]
[1693509368970,0.84876468,216.67,216.19,0.18828189]
[1693509369171,0.84876468,216.67,216.22,0.18828189]
[1693509369374,0.92321098,216.67,216.23,0.18828189]
[1693509369567,0.84876468,216.66,216.19,0.18828189]
[1693509369768,0.84876468,216.67,216.19,0.18828189]
[1693509369966,0.92321098,216.67,216.19,0.18828189]
[1693509370169,0.0744463,216.66,216.19,0.18828189]
[1693509370466,0.0744463,216.65,216.2,0.18828189]
[1693509370670,0.84876468,216.64,216.17,0.18828189]
[1693509371172,0.92321098,216.65,216.17,0.18828189]
[1693509371470,0.84876468,216.64,216.17,0.18828189]
[1693509372169,0.84876468,216.65,216.17,0.26344331]
[1693509372472,0.0744463,216.64,216.18,0.18828189]
[1693509372673,0.84876468,216.63,216.16,0.18828189]
[1693509372877,0.0744463,216.65,216.16,0.26344331]
[1693509373070,0.84888891,216.64,216.17,0.18828189]
[1693509373374,0.0744463,216.67,216.18,0.07516142]
[1693509373571,0.0744463,216.67,216.19,0.07516142]
[1693509373773,0.84882958,216.66,216.18,0.26344331]
[1693509374077,0.84882958,216.66,216.19,0.18828189]
[1693509374375,0.84882958,216.66,216.18,0.18828189]
[1693509374575,0.84882958,216.66,216.19,0.18828189]
[1693509374775,0.84882958,216.66,216.18,0.26344331]
[1693509374971,0.84882958,216.66,216.2,0.18828189]
[1693509375175,0.0744463,216.62,216.21,0.18828189]
[1693509375374,0.84882958,216.61,216.13,0.18828189]
[1693509376075,0.84882958,216.61,216.11,0.18828189]
[1693509376276,0.92327588,216.61,216.11,0.07516142]
[1693509376474,0.84882958,216.6,216.12,0.18828189]
[1693509377478,0.92327588,216.6,216.12,0.18828189]
[1693509377777,0.84882958,216.59,216.13,0.18828189]
[1693509378074,0.84882958,216.6,216.1,0.18828189]
[1693509378273,0.84882958,216.59,216.11,0.18828189]
[1693509378473,0.84882958,216.6,216.1,0.18828189]
[1693509379079,0.84882958,216.61,216.1,0.18828189]
[1693509379979,0.84882958,216.61,216.11,0.18828189]
[1693509380180,0.84882958,216.61,216.09,0.18828189]
[1693509380380,0.84882958,216.61,216.12,0.18828189]
[1693509380575,0.84882958,216.61,216.13,0.18828189]
[1693509380772,0.84882958,216.61,216.09,0.18828189]
[1693509380973,0.84882958,216.61,216.14,0.18828189]
[1693509381180,0.84882958,216.61,216.15,0.18828189]
[1693509381376,0.84882958,216.61,216.09,0.18828189]
[1693509382078,0.0744463,216.69,216.15,0.07516142]
[1693509382380,0.84883177,216.68,216.16,0.26344331]
[1693509382575,0.84883177,216.68,216.17,0.18828189]
[1693509383282,0.84883177,216.68,216.18,0.18828189]
[1693509383679,0.0744463,216.69,216.16,0.07516142]
[1693509383680,0.92327807,216.69,216.19,0.18828189]
[1693509383878,0.84883177,216.68,216.17,0.18828189]
[1693509384276,0.07445754,216.69,216.19,0.07517276]
[1693509384475,0.84883177,216.68,216.2,0.18828189]
[1693509385178,0.84883177,216.69,216.2,0.18828189]
[1693509385377,0.07445754,216.62,216.2,0.18828189]
[1693509385578,0.07445754,216.6,216.13,0.18828189]
[1693509385774,0.07445754,216.6,216.21,0.18828189]
[1693509385977,0.84909834,216.59,216.22,0.18828189]
[1693509386182,0.84909834,216.59,216.1,0.18828189]
[1693509386385,0.84909834,216.59,216.23,0.18828189]
[1693509386574,0.84909834,216.58,216.24,0.18828189]
[1693509386882,0.07445754,216.6,216.25,0.18828189]
[1693509387181,0.84911387,216.59,216.1,0.07517276]
[1693509387382,0.84911387,216.59,216.11,0.18879556]
[1693509387982,0.07445754,216.67,216.16,0.07517276]
[1693509388176,0.07445754,216.66,216.18,0.07517276]
[1693509388374,0.07445754,216.65,216.19,0.18879556]
[1693509388579,0.84882872,216.64,216.19,0.18879556]
[1693509388773,0.07445754,216.67,216.19,0.07517276]
[1693509388975,0.07445754,216.67,216.2,0.18879556]
[1693509389180,0.84877595,216.66,216.2,0.26396832]
[1693509389380,0.84877595,216.66,216.21,0.18879556]
[1693509389677,0.07445754,216.67,216.22,0.18879556]
[1693509389880,0.84878062,216.66,216.21,0.18879556]
[1693509390075,0.84878062,216.66,216.22,0.18879556]
[1693509390280,0.07445754,216.67,216.21,0.18879556]
[1693509390482,0.07445754,216.67,216.23,0.18879556]
[1693509390681,0.84879086,216.66,216.24,0.18879556]
[1693509390881,0.07445754,216.65,216.22,0.18879556]
[1693509391177,0.07445754,216.63,216.25,0.18879556]
[1693509391377,0.07445754,216.63,216.23,0.18879556]
[1693509391581,0.07445754,216.63,216.26,0.18879556]
[1693509391781,0.84902708,216.62,216.21,0.18879556]
[1693509392085,0.84902708,216.62,216.22,0.18879556]
[1693509392284,0.84902708,216.62,216.21,0.18879556]
[1693509393686,0.07445754,216.63,216.21,0.18879556]
[1693509396786,0.07445754,216.61,216.22,0.07517276]
[1693509396988,0.07445754,216.61,216.23,0.18879556]
[1693509397486,0.07445754,216.62,216.24,0.07517276]
[1693509397688,0.07445754,216.62,216.25,0.18879556]
[1693509398681,0.07445754,216.63,216.25,0.18879556]
[1693509399582,0.07445754,216.64,216.25,0.26396832]
[1693509399987,0.07445754,216.64,216.26,0.18879556]
[1693509400383,0.07445754,216.65,216.26,0.26396832]
[1693509400582,0.07445754,216.65,216.27,0.18879556]
[1693509400781,0.07445754,216.65,216.3,0.07517276]
[1693509400986,0.07445754,216.7,216.31,0.18879556]
[1693509401789,0.07445754,216.71,216.31,0.18879556]
[1693509402089,0.07445754,216.71,216.3,0.18879556]
[1693509402291,0.07445754,216.71,216.31,0.18879556]
[1693509402490,0.07445754,216.71,216.3,0.18879556]
[1693509402686,0.07445754,216.72,216.31,0.18879556]
[1693509402890,0.07445754,216.72,216.3,0.18879556]
[1693509403090,0.07445754,216.72,216.32,0.18879556]
[1693509403292,0.07445754,216.72,216.33,0.18879556]
[1693509403491,0.07445754,216.72,216.3,0.18879556]
[1693509403693,0.07445754,216.73,216.31,0.18879556]
[1693509403987,0.14891509,216.76,216.05,1.00230348]
[1693509403988,0.07445754,216.75,216.32,0.18879556]
[1693509404192,0.07445754,216.75,216.3,0.18879556]
[1693509405094,0.07445754,216.76,216.3,0.18879556]
[1693509405593,0.07445754,216.77,216.3,0.18879556]
[1693509405794,0.84848126,216.76,216.28,0.26396832]
[1693509405995,0.84848126,216.76,216.29,0.18879556]
[1693509406295,0.84848126,216.76,216.28,0.26396832]
[1693509406495,0.84848126,216.76,216.29,0.18879556]
[1693509407195,0.84848126,216.77,216.28,0.18879556]
[1693509407396,0.84848538,216.76,216.29,0.18879556]
[1693509407592,0.84848538,216.76,216.27,0.18879556]
[1693509407894,0.84848538,216.76,216.28,0.18879556]
[1693509408197,0.07445754,216.78,216.29,0.18879556]
[1693509408395,0.07445754,216.79,216.31,0.07517276]
[1693509408691,0.07445754,216.85,216.32,0.18879556]
[1693509408998,0.84818364,216.84,216.32,0.26396832]
[1693509409396,0.84818364,216.84,216.33,0.18879556]
[1693509409797,0.84818364,216.86,216.3,0.18879556]
[1693509410098,0.84818364,216.85,216.31,0.18879556]
[1693509410292,0.84818364,216.86,216.3,0.18879556]
[1693509411095,0.84818364,216.86,216.29,0.18879556]
[1693509411997,0.84818364,216.88,216.28,0.18879556]
[1693509412196,0.92264118,216.88,216.28,0.18879556]
[1693509412592,0.84818364,216.87,216.28,0.18879556]
[1693509412992,0.92264118,216.87,216.28,0.18879556]
[1693509413192,0.14891509,216.9,216.26,0.07517276]
[1693509413193,0.84818364,216.86,216.27,0.18879556]
[1693509413397,0.84818364,216.87,216.28,0.18879556]
[1693509413593,0.84818364,216.86,216.27,0.18879556]
[1693509413799,0.84818364,216.86,216.26,0.18879556]
[1693509413998,0.84818364,216.87,216.27,0.18879556]
[1693509414199,0.84818364,216.87,216.28,0.18879556]
[1693509414399,0.84818364,216.87,216.26,0.18879556]
[1693509414698,0.49638364,216.93,216.27,0.18879556]
[1693509414699,0.84818364,216.86,216.27,0.18879556]
[1693509415000,0.84818364,216.85,216.27,0.18879556]
[1693509415294,0.84818364,216.87,216.27,0.18879556]
[1693509415499,0.84818364,216.86,216.27,0.18879556]
[1693509415695,0.84818364,216.87,216.27,0.18879556]
[1693509415895,0.84818364,216.88,216.26,0.18879556]
[1693509416095,0.84818364,216.87,216.27,0.18879556]
[1693509416297,0.84818364,216.88,216.26,0.18879556]
[1693509416498,0.84818364,216.87,216.27,0.18879556]
[1693509416695,0.84818364,216.86,216.27,0.18879556]
[1693509416894,0.84818364,216.88,216.27,0.18879556]
[1693509417097,0.84818364,216.87,216.27,0.18879556]
[1693509417300,0.84818364,216.88,216.27,0.18879556]
[1693509417598,0.84818364,216.87,216.27,0.18879556]
[1693509417799,0.84818364,216.88,216.27,0.18879556]
[1693509417994,0.84818364,216.87,216.27,0.18879556]
[1693509418197,0.84818364,216.86,216.27,0.18879556]
[1693509418401,0.84818364,216.89,216.27,0.18879556]
[1693509418604,0.84818364,216.88,216.27,0.18879556]
[1693509418800,0.84818364,216.89,216.27,0.18879556]
[1693509418996,0.84818364,216.89,216.28,0.18879556]
[1693509419202,0.84818364,216.89,216.26,0.26396832]
[1693509419403,0.84818364,216.89,216.27,0.18879556]
[1693509419897,0.84818364,216.89,216.26,0.26396832]
[1693509420101,0.84818364,216.9,216.27,0.26396832]
[1693509420302,0.84818364,216.89,216.28,0.18879556]
[1693509420504,0.92264118,216.91,216.28,0.18879556]
[1693509420803,0.92264118,216.9,216.29,0.18879556]
[1693509421103,0.92264118,216.89,216.28,0.18879556]
[1693509421303,0.84818364,216.88,216.29,0.18879556]
[1693509421506,0.92264118,216.88,216.29,0.18879556]
[1693509421705,0.84818364,216.87,216.3,0.18879556]
[1693509421904,0.84818364,216.87,216.26,0.26396832]